bitfinex/quotes_SOLUSD_20220128
["timestamp","ask_amount","ask_price","bid_price","bid_amount"]
[1643387065149,0.25,92.249,92.159,35.89697731]
[1643387065552,16.282,92.24,92.159,35.89697731]
[1643387065953,0.25,92.239,92.159,35.89697731]
[1643387066753,16.283,92.23,92.13,1.41156423]
[1643387066955,16.283,92.23,92.128,1.41156423]
[1643387067151,6.0,92.22,92.128,1.41156423]
[1643387067351,0.25,92.219,92.125,1.41156423]
[1643387067551,0.25,92.219,92.126,41.40274084]
[1643387067957,16.288,92.2,92.126,41.40274084]
[1643387068354,0.25,92.199,92.126,41.40274084]
[1643387068656,16.288,92.2,92.126,41.40274084]
[1643387068856,0.25,92.199,92.126,42.81430507]
[1643387069057,16.29,92.19,92.126,41.40274084]
[1643387069255,0.25,92.189,92.126,41.40274084]
[1643387069654,0.25,92.189,92.127,109.9]
[1643387069855,0.25,92.218,92.127,0.25]
[1643387070056,0.25,92.218,92.127,1.41156423]
[1643387070254,16.287,92.21,92.126,41.40274084]
[1643387070456,6.0,92.209,92.126,41.40274084]
[1643387070655,6.25,92.209,92.123,1.41156423]
[1643387070857,6.25,92.209,92.118,1.41156423]
[1643387071056,23.19,92.208,92.113,1.41156423]
[1643387071257,0.25,92.207,92.115,1.41156423]
[1643387071759,0.25,92.207,92.116,36.30996192]
[1643387072156,16.289,92.2,92.116,36.30996192]
[1643387072356,0.25,92.199,92.116,36.30996192]
[1643387073559,0.25,92.207,92.116,36.30996192]
[1643387074061,16.291,92.19,92.116,36.30996192]
[1643387074262,0.25,92.189,92.116,36.30996192]
[1643387074861,11.30150641,92.271,92.117,110.15]
[1643387075061,23.3587,92.237,92.123,1.41156423]
[1643387075263,23.3587,92.237,92.124,0.25]
[1643387075461,23.3587,92.237,92.126,1.41156423]
[1643387075661,6.0,92.227,92.126,1.41156423]
[1643387075861,6.0,92.227,92.123,1.41156423]
[1643387076061,6.0,92.227,92.124,1.41156423]
[1643387076261,6.0,92.227,92.126,1.41156423]
[1643387076462,6.0,92.227,92.128,1.41156423]
[1643387076665,0.25,92.226,92.128,1.41156423]
[1643387076862,6.0,92.227,92.129,0.25]
[1643387077062,6.0,92.227,92.132,1.41156423]
[1643387077262,6.0,92.227,92.129,0.25]
[1643387077263,6.0,92.227,92.134,1.41156423]
[1643387077664,6.0,92.227,92.133,36.63315387]
[1643387078067,45.9144,92.237,92.134,0.25]
[1643387078366,186.2458,92.33,92.154,1.41156423]
[1643387078367,16.1012,92.304,92.154,1.41156423]
[1643387078568,16.1012,92.304,92.135,3.22944783]
[1643387078569,71.4389,92.304,92.159,1.41156423]
[1643387078764,18.08615382,92.301,92.16,40.4005675]
[1643387078967,54.261,92.28,92.16,40.1505675]
[1643387079169,22.9442,92.279,92.16,41.56213173]
[1643387079368,16.277,92.26,92.164,1.41156423]
[1643387079767,16.277,92.26,92.161,0.25]
[1643387079768,16.277,92.26,92.165,1.66156423]
[1643387079968,16.277,92.26,92.165,0.25]
[1643387080467,16.277,92.26,92.167,1.41156423]
[1643387080868,16.277,92.26,92.168,0.25]
[1643387081070,16.277,92.26,92.161,1.41156423]
[1643387081270,16.283,92.24,92.163,1.41156423]
[1643387081493,16.283,92.24,92.164,1.41156423]
[1643387081696,0.25,92.239,92.162,1.66156423]
[1643387081895,0.25,92.239,92.17,6.0]
[1643387082092,54.274,92.25,92.165,1.41156423]
[1643387082293,0.25,92.249,92.166,0.25]
[1643387082494,0.25,92.249,92.166,1.66156423]
[1643387082694,0.25,92.249,92.17,6.0]
[1643387082895,0.25,92.249,92.166,1.66156423]
[1643387083094,0.25,92.249,92.165,1.41156423]
[1643387083296,0.25,92.249,92.056,0.25]
[1643387083297,16.281,92.24,92.163,1.41156423]
[1643387083495,16.281,92.24,92.159,1.41156423]
[1643387083699,24.02,92.239,92.15,1.41156423]
[1643387083895,24.02,92.239,92.148,1.41156423]
[1643387084197,6.0,92.229,92.148,1.41156423]
[1643387084397,0.25,92.228,92.149,1.41156423]
[1643387084596,0.25,92.228,92.15,1.41156423]
[1643387084798,0.25,92.228,92.146,1.41156423]
[1643387085096,16.287,92.22,92.146,1.41156423]
[1643387085297,0.25,92.219,92.142,1.41156423]
[1643387085502,0.25,92.219,92.144,1.41156423]
[1643387085698,0.25,92.219,92.145,1.41156423]
[1643387086099,0.25,92.219,92.14,42.05130032]
[1643387086499,16.286,92.21,92.137,1.41156423]
[1643387086903,23.9123,92.228,92.138,2.15385807]
[1643387087100,23.9123,92.228,92.149,1.41156423]
[1643387087301,23.9123,92.228,92.15,13.58]
[1643387087501,23.9123,92.228,92.151,46.49072396]
[1643387087902,23.9123,92.228,92.148,1.41156423]
[1643387088702,54.274,92.25,92.148,1.41156423]
[1643387088903,0.1,92.719,92.148,1.41156423]
[1643387088904,97.0501,92.257,92.15,13.58]
[1643387089103,97.0501,92.257,92.16,6.0]
[1643387089305,24.296,92.257,92.171,42.57718665]
[1643387089502,23.3992,92.266,92.171,42.57718665]
[1643387089707,23.3992,92.266,92.181,6.0]
[1643387090204,0.25,92.265,92.183,6.0]
[1643387090805,0.25,92.265,92.182,6.0]
[1643387091005,0.25,92.265,92.183,6.0]
[1643387091208,23.3992,92.266,92.183,6.0]
[1643387092104,16.278,92.26,92.183,6.0]
[1643387092305,16.278,92.26,92.181,6.0]
[1643387092705,0.25,92.259,92.181,6.0]
[1643387093306,16.279,92.25,92.173,1.41156423]
[1643387093506,16.279,92.25,92.172,1.41156423]
[1643387093704,0.25,92.249,92.163,1.41156423]
[1643387093906,0.25,92.249,92.16,14.99156423]
[1643387094105,0.25,92.249,92.165,1.41156423]
[1643387094508,0.25,92.249,92.166,36.81223215]
[1643387094707,0.25,92.249,92.167,109.9]
[1643387095207,0.25,92.249,92.168,0.25]
[1643387096207,0.25,92.249,92.166,36.81223215]
[1643387096407,0.25,92.249,92.167,109.9]
[1643387096606,0.25,92.249,92.166,36.81223215]
[1643387097307,0.25,92.249,92.166,36.76223215]
[1643387098008,16.279,92.25,92.167,109.9]
[1643387098407,16.279,92.25,92.167,111.31156423]
[1643387098607,16.279,92.25,92.177,6.0]
[1643387099011,23.3858,92.265,92.179,6.0]
[1643387099209,23.3858,92.265,92.18,37.03126465]
[1643387099409,0.25,92.264,92.18,37.03126465]
[1643387099610,0.25,92.264,92.19,6.0]
[1643387100311,16.275,92.28,92.19,6.0]
[1643387100613,134.8033,92.3,92.19,6.0]
[1643387100614,23.7305,92.3,92.191,0.25]
[1643387100911,2.99583134,92.34,92.191,0.25]
[1643387100912,1.48984806,92.328,92.192,1.41156423]
[1643387101110,16.267,92.32,92.202,6.0]
[1643387101315,16.267,92.32,92.21,13.58]
[1643387101514,16.267,92.32,92.22,6.0]
[1643387101712,16.267,92.32,92.221,41.88376502]
[1643387101911,16.267,92.32,92.221,47.88376502]
[1643387102116,16.267,92.32,92.22,13.58]
[1643387102310,6.0,92.31,92.22,13.58]
[1643387102511,16.273,92.29,92.22,13.58]
[1643387103212,16.273,92.29,92.221,43.41679984]
[1643387103612,16.273,92.29,92.221,45.57065791]
[1643387103812,24.3421,92.319,92.222,2.15385807]
[1643387104012,0.25,92.318,92.222,2.15385807]
[1643387104212,0.25,92.318,92.221,43.41679984]
[1643387104812,16.268,92.31,92.222,0.25]
[1643387105012,16.268,92.31,92.222,112.30385807]
[1643387105213,0.25,92.309,92.222,2.40385807]
[1643387105413,24.3421,92.319,92.222,2.40385807]
[1643387106014,24.3421,92.319,92.223,2.15385807]
[1643387106413,24.3421,92.319,92.224,0.25]
[1643387106813,24.3421,92.319,92.224,2.40385807]
[1643387107013,16.27,92.3,92.224,2.40385807]
[1643387107415,0.25,92.299,92.224,2.40385807]
[1643387108317,1.48984806,92.331,92.224,2.40385807]
[1643387108517,1.48984806,92.331,92.234,6.0]
[1643387108716,1.48984806,92.344,92.241,40.34402855]
[1643387108916,1.48984806,92.344,92.242,110.15]
[1643387109116,1.48984806,92.352,92.252,6.0]
[1643387109319,5.5157164,92.354,92.261,39.66149902]
[1643387109518,5.5157164,92.354,92.271,6.0]
[1643387109720,5.5157164,92.354,92.281,155.50189725]
[1643387110217,5.5157164,92.354,92.291,6.0]
[1643387110417,1.48984806,92.405,92.3,29.832]
[1643387110718,48.371,92.417,92.311,109.9]
[1643387110918,16.249,92.42,92.32,13.58]
[1643387111218,1.48984806,92.431,92.331,48.07919687]
[1643387111419,1.48984806,92.446,92.34,13.58]
[1643387111621,1.48984806,92.459,92.35,6.0]
[1643387111816,1.48984806,92.465,92.36,13.58]
[1643387112019,1.48984806,92.463,92.37,6.0]
[1643387112218,1.48984806,92.465,92.37,19.58]
[1643387112419,1.48984806,92.461,92.371,0.25]
[1643387112817,2.95669142,92.464,92.37,13.58]
[1643387113023,2.95669142,92.464,92.34,13.58]
[1643387113218,2.95669142,92.464,92.351,6.0]
[1643387113219,24.9825,92.463,92.351,6.0]
[1643387113422,23.0992,92.462,92.35,6.0]
[1643387114224,0.25,92.431,92.35,6.0]
[1643387114625,0.25,92.431,92.351,0.25]
[1643387115029,16.247,92.43,92.351,0.25]
[1643387115252,0.25,92.429,92.35,6.0]
[1643387115454,3.20669142,92.429,92.262,1.41156423]
[1643387115653,6.0,92.42,92.272,16.3858]
[1643387115853,106.4815,92.419,92.27,13.58]
[1643387116055,16.258,92.38,92.27,16.256]
[1643387116353,0.25,92.379,92.27,13.58]
[1643387116755,2.95669142,92.378,92.271,10.40413]
[1643387117254,16.261,92.35,92.271,10.40413]
[1643387117757,0.25,92.349,92.271,10.40413]
[1643387118156,16.266,92.33,92.271,10.40413]
[1643387118355,0.25,92.329,92.271,10.40413]
[1643387118555,16.266,92.33,92.271,10.40413]
[1643387118755,0.25,92.329,92.271,10.40413]
[1643387120558,16.266,92.32,92.271,10.40413]
[1643387120960,0.25,92.319,92.271,10.40413]
[1643387122258,16.267,92.31,92.271,10.40413]
[1643387122658,0.25,92.309,92.271,10.40413]
[1643387123858,6.0,92.319,92.271,10.40413]
[1643387124059,16.269,92.3,92.271,10.40413]
[1643387124660,16.269,92.3,92.267,36.46522164]
[1643387125062,16.269,92.3,92.268,10.40447]
[1643387125465,16.269,92.3,92.267,36.46522164]
[1643387125663,0.25,92.299,92.22,13.58]
[1643387125862,16.269,92.3,92.228,0.25]
[1643387126065,16.266,92.32,92.229,10.40887]
[1643387126262,16.266,92.32,92.23,110.15]
[1643387126463,16.266,92.32,92.231,10.40864]
[1643387126668,16.266,92.32,92.232,43.04932826]
[1643387126864,16.266,92.32,92.233,110.15]
[1643387127465,0.25,92.319,92.233,110.15]
[1643387127865,77.1724,92.349,92.233,112.29794016]
[1643387128068,16.262,92.34,92.24,13.58]
[1643387128267,22.5046,92.376,92.243,6.0]
[1643387128567,54.201,92.37,92.251,45.76423411]
[1643387128764,54.201,92.37,92.261,109.9]
[1643387129165,54.201,92.37,92.262,0.25]
[1643387129365,54.201,92.37,92.262,2.39794016]
[1643387129766,16.259,92.36,92.262,2.39794016]
[1643387130169,16.259,92.36,92.263,2.14794016]
[1643387130367,0.25,92.359,92.264,0.25]
[1643387130967,0.25,92.359,92.27,16.256]
[1643387131167,0.25,92.359,92.271,47.37674839]
[1643387131369,0.25,92.359,92.271,47.62674839]
[1643387131867,0.25,92.359,92.272,109.9]
[1643387132367,0.25,92.359,92.273,0.25]
[1643387134571,0.25,92.359,92.274,2.14792697]
[1643387134773,0.25,92.379,92.275,0.25]
[1643387135173,2.95669142,92.378,92.271,47.37674839]
[1643387135373,0.25,92.377,92.271,47.37674839]
[1643387135574,6.0,92.368,92.271,47.37674839]
[1643387135775,16.264,92.34,92.271,47.37674839]
[1643387136572,16.264,92.34,92.257,109.9]
[1643387136778,16.264,92.34,92.258,0.25]
[1643387136975,16.264,92.34,92.257,109.9]
[1643387137375,0.25,92.339,92.257,109.9]
[1643387137576,16.264,92.33,92.258,42.18067602]
[1643387137776,0.25,92.329,92.258,42.18067602]
[1643387138178,1.48984806,92.371,92.258,42.18067602]
[1643387138378,0.25,92.363,92.26,13.58]
[1643387138575,16.258,92.36,92.26,29.838]
[1643387138775,0.25,92.359,92.261,0.25]
[1643387139776,0.25,92.359,92.261,110.15]
[1643387139978,16.26,92.35,92.261,110.15]
[1643387141499,54.198,92.38,92.261,110.15]
[1643387141500,16.257,92.37,92.261,110.15]
[1643387141679,16.257,92.37,92.263,109.9]
[1643387141881,16.257,92.37,92.265,109.9]
[1643387142082,16.257,92.37,92.266,10.40469]
[1643387142284,16.257,92.37,92.266,10.65469]
[1643387142485,16.259,92.36,92.266,10.65469]
[1643387142683,16.259,92.36,92.267,109.9]
[1643387142884,16.259,92.36,92.268,10.65447]
[1643387143385,16.259,92.36,92.269,109.9]
[1643387143583,16.259,92.36,92.27,10.40424]
[1643387143784,16.259,92.36,92.271,109.9]
[1643387143985,16.259,92.36,92.272,49.20615426]
[1643387144185,16.259,92.36,92.272,49.45615426]
[1643387145386,0.25,92.359,92.273,109.9]
[1643387145888,16.259,92.36,92.274,0.25]
[1643387146888,1.48984806,92.377,92.274,0.25]
[1643387147287,1.48984806,92.377,92.275,10.40368]
[1643387147488,1.48984806,92.377,92.291,148.83801538]
[1643387147896,1.48984806,92.381,92.302,109.9]
[1643387148093,1.48984806,92.391,92.302,109.9]
[1643387148294,1.48984806,92.394,92.303,0.25]
[1643387148496,1.48984806,92.393,92.303,0.25]
[1643387148695,23.4431,92.407,92.303,0.25]
[1643387148696,1.48984806,92.4,92.303,0.25]
[1643387148894,1.48984806,92.401,92.304,10.40041]
[1643387149109,1.48984806,92.401,92.305,37.23443055]
[1643387149310,16.254,92.39,92.311,109.9]
[1643387149514,1.48984806,92.401,92.311,109.9]
[1643387149711,1.48984806,92.401,92.312,0.25]
[1643387149912,1.48984806,92.407,92.312,0.25]
[1643387150112,1.48984806,92.408,92.312,0.25]
[1643387150312,1.48984806,92.409,92.312,0.25]
[1643387150513,1.48984806,92.415,92.313,10.3994]
[1643387150712,1.48984806,92.416,92.314,109.9]
[1643387150913,0.25,92.414,92.315,10.39917]
[1643387151116,16.25,92.41,92.315,10.39917]
[1643387151312,0.25,92.409,92.316,0.25]
[1643387151516,16.25,92.41,92.331,41.23101867]
[1643387151911,16.25,92.41,92.332,0.25]
[1643387152913,0.25,92.409,92.332,0.25]
[1643387153314,16.25,92.41,92.331,41.23101867]
[1643387154115,16.25,92.41,92.332,109.9]
[1643387154715,0.25,92.409,92.332,109.9]
[1643387155517,1.48984806,92.416,92.333,0.25]
[1643387155817,26.36834806,92.43,92.333,0.25]
[1643387156016,24.8785,92.43,92.334,10.39703]
[1643387156219,1.48984806,92.429,92.335,109.9]
[1643387156515,24.8785,92.43,92.34,16.244]
[1643387156717,24.8785,92.43,92.351,35.6615383]
[1643387156917,2000.0,92.432,92.351,35.6615383]
[1643387157120,2000.0,92.432,92.352,110.15]
[1643387158726,1755.67403561,92.432,92.353,2.14362768]
[1643387158925,1755.67403561,92.432,92.362,6.0]
[1643387158926,1740.65877439,92.432,92.362,6.0]
[1643387159126,1710.55916564,92.432,92.37,13.58]
[1643387159324,1630.15576564,92.432,92.383,5.0]
[1643387159522,1596.33336564,92.432,92.393,6.0]
[1643387159722,1588.83996564,92.432,92.393,6.0]
[1643387159922,1588.83996564,92.432,92.4,6.0]
[1643387160122,1567.33996564,92.432,92.41,29.811]
[1643387160622,1567.33996564,92.432,92.42,6.0]
[1643387160822,1567.33996564,92.432,92.421,0.25]
[1643387161025,1567.33996564,92.432,92.422,109.9]
[1643387161226,1567.33996564,92.432,92.43,6.0]
[1643387161827,1567.33996564,92.432,92.34,26.46236]
[1643387161828,1567.33996564,92.432,92.394,12.79762635]
[1643387162027,36.19861774,92.431,92.397,2.14362768]
[1643387162227,36.44861774,92.431,92.398,10.38983]
[1643387162426,36.19861774,92.431,92.398,10.38983]
[1643387164132,0.25,92.43,92.36,13.58]
[1643387164329,0.25,92.43,92.35,13.58]
[1643387165130,16.496,92.43,92.35,13.58]
[1643387165342,16.496,92.43,92.34,16.066]
[1643387165530,0.25,92.43,92.341,109.9]
[1643387166335,0.25,92.43,92.342,0.25]
[1643387166734,16.496,92.43,92.34,29.646]
[1643387166935,2.95669142,92.429,92.32,13.58]
[1643387167135,23.4631,92.428,92.32,13.58]
[1643387167334,6.0,92.419,92.32,13.58]
[1643387167534,22.9677,92.418,92.32,13.58]
[1643387167768,39.70367765,92.417,92.321,109.9]
[1643387167934,39.70367765,92.417,92.32,13.58]
[1643387168138,2.95669142,92.416,92.32,13.58]
[1643387168437,36.94917797,92.399,92.32,13.58]
[1643387169340,0.25,92.398,92.321,0.25]
[1643387169838,36.94917797,92.399,92.321,0.25]
[1643387170437,36.94917797,92.399,92.32,29.827]
[1643387170639,22.9677,92.418,92.321,109.9]
[1643387170838,1.48984806,92.452,92.322,2.13777675]
[1643387171040,1.48984806,92.455,92.332,6.0]
[1643387171238,47.706,92.456,92.34,13.58]
[1643387171638,48.19836258,92.431,92.35,6.0]
[1643387171838,48.19836258,92.431,92.36,29.82]
[1643387172038,48.19836258,92.431,92.37,6.0]
[1643387172241,48.19836258,92.431,92.38,13.58]
[1643387172442,48.19836258,92.431,92.381,109.9]
[1643387172639,48.19836258,92.431,92.391,6.0]
[1643387172839,48.19836258,92.431,92.392,110.15]
[1643387174044,48.19836258,92.431,92.392,109.9]
[1643387176649,48.19836258,92.431,92.391,6.0]
[1643387176847,48.19836258,92.431,92.39,6.0]
[1643387177249,1.2647618,92.452,92.391,0.25]
[1643387177748,1.2647618,92.452,92.391,110.15]
[1643387178352,39.62104574,92.431,92.391,0.25]
[1643387178849,39.62104574,92.431,92.381,0.25]
[1643387183271,1.2647618,92.452,92.381,110.15]
[1643387184272,41.2258781,92.451,92.381,110.15]
[1643387188580,41.2258781,92.451,92.381,109.9]
[1643387188780,0.25,92.45,92.381,109.9]
[1643387189182,0.25,92.45,92.38,30.1996]
[1643387189383,0.25,92.45,92.38,13.58]
[1643387189781,41.2258781,92.451,92.381,0.25]
[1643387190182,41.2258781,92.451,92.381,110.15]
[1643387190582,41.2258781,92.451,92.38,13.58]
[1643387191182,16.243,92.45,92.38,13.58]
[1643387191382,16.493,92.45,92.38,13.58]
[1643387191581,16.493,92.45,92.36,13.58]
[1643387191784,16.493,92.45,92.361,6.0]
[1643387191987,16.493,92.45,92.36,13.58]
[1643387191988,2.95669142,92.449,92.36,13.58]
[1643387192286,0.25,92.448,92.342,16.5819]
[1643387192884,2.95669142,92.447,92.342,16.5819]
[1643387193084,16.248,92.43,92.342,16.5819]
[1643387193286,65.75434725,92.429,92.342,16.5819]
[1643387193586,65.50434725,92.429,92.342,16.5819]
[1643387193785,0.25,92.428,92.342,16.5819]
[1643387193987,0.25,92.428,92.343,109.9]
[1643387194187,16.248,92.42,92.343,109.9]
[1643387194392,16.248,92.42,92.344,0.25]
[1643387194790,0.25,92.419,92.344,0.25]
[1643387195187,0.25,92.419,92.343,0.25]
[1643387195492,65.50434725,92.429,92.343,110.15]
[1643387195887,0.25,92.428,92.343,110.15]
[1643387196587,65.50434725,92.429,92.343,110.15]
[1643387196787,1.2647618,92.452,92.35,16.243]
[1643387196986,1.2647618,92.452,92.36,13.58]
[1643387197188,0.25,92.451,92.36,13.58]
[1643387197389,0.25,92.451,92.361,0.25]
[1643387197789,44.706584,92.451,92.361,0.25]
[1643387197989,44.706584,92.451,92.361,110.15]
[1643387198388,1.2647618,92.452,92.361,110.15]
[1643387198588,1.2647618,92.452,92.371,6.0]
[1643387198789,1.2647618,92.452,92.381,109.9]
[1643387199189,1.2647618,92.452,92.391,6.0]
[1643387199396,1.2647618,92.452,92.4,13.58]
[1643387199593,1.2647618,92.452,92.41,6.0]
[1643387199793,1.2647618,92.452,92.421,109.9]
[1643387200195,1.2647618,92.452,92.422,0.25]
[1643387200997,1.2647618,92.452,92.421,109.9]
[1643387202601,1.48984806,92.504,92.431,6.0]
[1643387202798,1.48984806,92.518,92.454,1.2647618]
[1643387203097,41.4169771,92.532,92.464,6.0]
[1643387203298,41.4169771,92.532,92.465,0.25]
[1643387203498,41.4169771,92.532,92.433,109.9]
[1643387203701,22.5012,92.531,92.45,13.58]
[1643387204100,0.25,92.53,92.45,13.58]
[1643387204498,1.73984806,92.53,92.45,13.58]
[1643387204900,0.25,92.53,92.45,13.58]
[1643387205301,22.5012,92.531,92.45,13.58]
[1643387205701,22.5012,92.531,92.451,0.25]
[1643387205898,22.5012,92.531,92.45,13.58]
[1643387206100,16.229,92.53,92.45,13.58]
[1643387206901,16.229,92.53,92.451,0.25]
[1643387207102,16.229,92.53,92.451,110.15]
[1643387207302,0.25,92.529,92.451,109.9]
[1643387208206,0.25,92.529,92.45,13.58]
[1643387208408,16.229,92.53,92.45,13.58]
[1643387209838,0.25,92.529,92.45,13.58]
[1643387210238,16.231,92.52,92.43,29.809]
[1643387210444,44.23253853,92.518,92.43,13.58]
[1643387210638,44.23253853,92.518,92.431,0.25]
[1643387210840,0.25,92.517,92.431,0.25]
[1643387211240,48.1118,92.519,92.431,0.25]
[1643387211439,4.44653948,92.546,92.44,6.0]
[1643387211643,23.3652,92.545,92.45,13.58]
[1643387211840,23.3652,92.545,92.451,0.25]
[1643387212041,23.3652,92.545,92.46,6.0]
[1643387212240,37.15917517,92.544,92.461,109.9]
[1643387212443,37.15917517,92.544,92.461,116.15]
[1643387212644,37.15917517,92.544,92.47,6.0]
[1643387212846,37.15917517,92.544,92.471,0.25]
[1643387213047,37.15917517,92.544,92.471,6.25]
[1643387213246,37.15917517,92.544,92.48,6.0]
[1643387213648,37.15917517,92.544,92.482,6.0]
[1643387214247,37.15917517,92.544,92.483,0.25]
[1643387214948,37.15917517,92.544,92.481,109.9]
[1643387215448,37.15917517,92.544,92.491,6.0]
[1643387215649,37.15917517,92.544,92.482,0.25]
[1643387216248,37.15917517,92.544,92.491,6.0]
[1643387216449,37.15917517,92.544,92.48,6.0]
[1643387216847,37.15917517,92.544,92.481,0.25]
[1643387217048,37.15917517,92.544,92.483,6.0]
[1643387217447,37.15917517,92.544,92.484,0.25]
[1643387217648,37.15917517,92.544,92.47,29.802]
[1643387217848,16.227,92.54,92.45,32.6676]
[1643387218049,16.227,92.54,92.45,30.0226]
[1643387218250,0.25,92.539,92.45,16.4426]
[1643387218549,2.95669142,92.539,92.413,10.61438039]
[1643387218748,2.95669142,92.538,92.42,13.58]
[1643387218950,37.30449651,92.519,92.402,16.1516]
[1643387219349,2.95669142,92.518,92.402,16.1516]
[1643387219751,23.8759,92.517,92.402,16.1516]
[1643387220050,2.95669142,92.516,92.402,16.1516]
[1643387220350,0.25,92.515,92.403,109.9]
[1643387220558,43.53329169,92.489,92.403,109.9]
[1643387220854,23.8333,92.488,92.404,0.25]
[1643387221149,23.8333,92.488,92.403,109.9]
[1643387221349,23.8333,92.488,92.402,16.1516]
[1643387221552,16.238,92.48,92.4,13.58]
[1643387221752,23.419,92.479,92.313,5.0]
[1643387221953,23.669,92.479,92.38,13.58]
[1643387222553,23.669,92.479,92.381,109.9]
[1643387222754,23.669,92.479,92.381,112.03937216]
[1643387222957,23.669,92.479,92.382,2.13937216]
[1643387223153,23.669,92.479,92.382,2.38937216]
[1643387223553,23.669,92.479,92.383,2.13937216]
[1643387223753,2.95669142,92.478,92.38,13.58]
[1643387223953,40.29933335,92.468,92.358,33.19623835]
[1643387224155,24.4505,92.467,92.36,13.58]
[1643387224454,24.4505,92.467,92.38,16.236]
[1643387224654,24.4505,92.467,92.37,19.58]
[1643387225053,24.4505,92.467,92.371,6.0]
[1643387225255,24.4505,92.467,92.38,6.0]
[1643387225858,16.242,92.46,92.37,16.239]
[1643387226055,24.4505,92.467,92.38,2.13783921]
[1643387226356,24.4505,92.467,92.39,13.58]
[1643387226557,24.4505,92.467,92.39,19.58]
[1643387226756,24.4505,92.467,92.391,2.37919751]
[1643387227157,24.4505,92.467,92.401,6.0]
[1643387227359,24.4505,92.467,92.402,0.25]
[1643387227557,24.4505,92.467,92.402,6.25]
[1643387227779,24.4505,92.467,92.402,6.0]
[1643387227980,24.4505,92.467,92.403,109.9]
[1643387228384,24.4505,92.467,92.413,6.0]
[1643387229185,16.233,92.51,92.414,109.9]
[1643387229383,47.002,92.496,92.414,110.15]
[1643387229585,77.1033,92.528,92.424,6.0]
[1643387229787,77.1033,92.528,92.43,13.58]
[1643387230186,77.1033,92.528,92.441,109.9]
[1643387230386,40.28348451,92.527,92.45,13.58]
[1643387230584,40.28348451,92.527,92.46,6.0]
[1643387230785,40.28348451,92.527,92.461,109.9]
[1643387231011,40.28348451,92.527,92.451,2.11915339]
[1643387231185,40.28348451,92.527,92.43,13.58]
[1643387231387,2.95669142,92.526,92.39,1.41156423]
[1643387231687,6.0,92.516,92.39,13.58]
[1643387231890,16.238,92.49,92.37,13.58]
[1643387232087,6.0,92.48,92.36,13.58]
[1643387232287,0.25,92.479,92.36,13.58]
[1643387232487,6.25,92.479,92.36,13.58]
[1643387232787,9.20669142,92.479,92.36,13.58]
[1643387232988,112.85669142,92.478,92.36,13.58]
[1643387233289,0.25,92.477,92.36,13.58]
[1643387233492,16.245,92.45,92.36,13.58]
[1643387233791,109.9,92.447,92.34,13.58]
[1643387233987,6.0,92.44,92.34,13.58]
[1643387234187,6.0,92.437,92.34,13.58]
[1643387234487,24.8347,92.436,92.35,6.0]
[1643387235090,46.78715944,92.431,92.352,109.9]
[1643387235290,0.25,92.43,92.352,109.9]